fUST/lending_fUST_20241221
["ID","MTS","AMOUNT","RATE_DAILY","PERIOD"]
[346180231,1734766244361,-500.0,0.00019178,2]
[346180233,1734766244370,-500.0,0.00019178,2]
[346180235,1734766244379,-500.0,0.00019178,2]
[346180237,1734766244388,-500.0,0.00019178,2]
[346180239,1734766244398,-500.0,0.00019178,2]
[346180240,1734766244407,-500.0,0.00019178,2]
[346180242,1734766244416,-500.0,0.00019178,2]
[346180244,1734766244425,-564.04103698,0.00019178,2]
[346180246,1734766244434,-500.0,0.00019178,2]
[346180248,1734766244444,-500.0,0.00019178,2]
[346180250,1734766244454,-500.0,0.00019178,2]
[346180252,1734766244463,-500.0,0.00019178,2]
[346180254,1734766244472,-500.0,0.00019178,2]
[346180256,1734766244482,-500.0,0.00019178,2]
[346180257,1734766244491,-500.0,0.00019178,2]
[346180259,1734766244501,-500.0,0.00019178,2]
[346180261,1734766244510,-500.0,0.00019178,2]
[346180263,1734766244519,-500.0,0.00019178,2]
[346180265,1734766244528,-501.38230805,0.00019178,2]
[346180267,1734766244537,-257.593406,0.00019178,2]
[346180269,1734766244547,-500.0,0.00019178,2]
[346180271,1734766244556,-500.0,0.00019178,2]
[346180273,1734766244566,-200.0,0.00019178,2]
[346180275,1734766244575,-502.81889665,0.00019178,2]
[346180276,1734766244584,-500.0,0.00019178,2]
[346180278,1734766244594,-500.0,0.00019178,2]
[346180280,1734766244603,-500.0,0.00019178,2]
[346180282,1734766244613,-500.0,0.00019178,2]
[346180284,1734766244622,-500.0,0.00019178,2]
[346180286,1734766244631,-502.84900009,0.00019178,2]
[346180288,1734766244640,-500.0,0.00019178,2]
[346180290,1734766244648,-500.0,0.00019178,2]
[346180292,1734766244657,-503.51016682,0.00019178,2]
[346180293,1734766244666,-295.11814966,0.00019178,2]
[346180295,1734766244676,-500.0,0.00019178,2]
[346180297,1734766244685,-501.90749026,0.00019178,2]
[346180299,1734766244693,-500.0,0.00019178,2]
[346180301,1734766244703,-500.0,0.00019178,2]
[346180303,1734766244712,-500.0,0.00019178,2]
[346180305,1734766244722,-500.78196162,0.00019178,2]
[346180307,1734766244730,-500.0,0.00019178,2]
[346180308,1734766244740,-500.0,0.00019178,2]
[346180310,1734766244749,-580.16,0.00019178,2]
[346180312,1734766244758,-500.0,0.00019178,2]
[346180314,1734766244767,-500.0,0.00019178,2]
[346180316,1734766244776,-500.0,0.00019178,2]
[346180318,1734766244785,-505.60704406,0.00019178,2]
[346180320,1734766244795,-500.0,0.00019178,2]
[346180322,1734766244805,-244.05293236,0.00019178,2]
[346180324,1734766244814,-500.0,0.00019178,2]
[346180326,1734766244825,-500.0,0.00019178,2]
[346180327,1734766244834,-510.83752959,0.00019178,2]
[346180329,1734766244844,-500.0,0.00019178,2]
[346180331,1734766244853,-594.43822785,0.00019178,2]
[346180333,1734766244862,-500.0,0.00019178,2]
[346180335,1734766244871,-500.0,0.00019178,2]
[346180337,1734766244880,-500.0,0.00019178,2]
[346180339,1734766244888,-500.0,0.00019178,2]
[346180341,1734766244897,-502.72481487,0.00019178,2]
[346180342,1734766244907,-501.21485167,0.00019178,2]
[346180344,1734766244917,-501.33995208,0.00019178,2]
[346180346,1734766244926,-500.0,0.00019178,2]
[346180348,1734766244938,-501.78458009,0.00019178,2]
[346180350,1734766244948,-1330.57,0.00019178,2]
[346180352,1734766244958,-501.61656016,0.00019178,2]
[346180354,1734766244967,-500.0,0.00019178,2]
[346180356,1734766244976,-500.0,0.00019178,2]
[346180357,1734766244987,-500.0,0.00019178,2]
[346180359,1734766244996,-500.0,0.00019178,2]
[346180361,1734766245005,-500.0,0.00019178,2]
[346180363,1734766245015,-500.0,0.00019178,2]
[346180365,1734766245024,-500.0,0.00019178,2]
[346180367,1734766245033,-500.0,0.00019178,2]
[346180369,1734766245043,-500.0,0.00019178,2]
[346180371,1734766245052,-500.0,0.00019178,2]
[346180373,1734766245061,-501.25770061,0.00019178,2]
[346180374,1734766245071,-500.0,0.00019178,2]
[346180376,1734766245081,-500.0,0.00019178,2]
[346180378,1734766245090,-500.0,0.00019178,2]
[346180380,1734766245099,-500.0,0.00019178,2]
[346180382,1734766245110,-500.0,0.00019178,2]
[346180384,1734766245120,-500.0,0.00019178,2]
[346180386,1734766245129,-500.0,0.00019178,2]
[346180388,1734766245138,-735.61,0.00019178,2]
[346180390,1734766245147,-500.0,0.00019178,2]
[346180392,1734766245158,-504.47881299,0.00019178,2]
[346180393,1734766245167,-500.0,0.00019178,2]
[346180395,1734766245177,-500.0,0.00019178,2]
[346180397,1734766245186,-500.0,0.00019178,2]
[346180399,1734766245195,-579.22,0.00019178,2]
[346180401,1734766245206,-500.0,0.00019178,2]
[346180403,1734766245215,-500.0,0.00019178,2]
[346180405,1734766245224,-500.0,0.00019178,2]
[346180407,1734766245234,-500.0,0.00019178,2]
[346180409,1734766245244,-322.06378309,0.00019178,2]
[346180410,1734766245253,-1419.0,0.00019178,2]
[346180412,1734766245263,-527.74716026,0.00019178,2]
[346180414,1734766245273,-500.0,0.00019178,2]
[346180416,1734766245282,-500.0,0.00019178,2]
[346180417,1734766245292,-642.02,0.00019178,2]
[346180419,1734766245301,-500.0,0.00019178,2]
[346180421,1734766245310,-500.0,0.00019178,2]
[346180422,1734766245319,-625.93009109,0.00019178,2]
[346180424,1734766245328,-500.0,0.00019178,2]
[346180426,1734766245338,-653.51,0.00019178,2]
[346180428,1734766245347,-500.0,0.00019178,2]
[346180430,1734766245357,-500.0,0.00019178,2]
[346180431,1734766245366,-500.0,0.00019178,2]
[346180433,1734766245375,-500.0,0.00019178,2]
[346180435,1734766245385,-500.0,0.00019178,2]
[346180437,1734766245394,-500.0,0.00019178,2]
[346180438,1734766245403,-500.0,0.00019178,2]
[346180440,1734766245413,-500.0,0.00019178,2]
[346180442,1734766245423,-585.16,0.00019178,2]
[346180444,1734766245432,-501.13929893,0.00019178,2]
[346180446,1734766245441,-500.0,0.00019178,2]
[346180448,1734766245451,-500.0,0.00019178,2]
[346180449,1734766245460,-500.0,0.00019178,2]
[346180451,1734766245469,-500.0,0.00019178,2]
[346180453,1734766245479,-500.0,0.00019178,2]
[346180455,1734766245488,-359.62388808,0.00019178,2]
[346180457,1734766245498,-500.0,0.00019178,2]
[346180459,1734766245507,-500.0,0.00019178,2]
[346180461,1734766245516,-503.08,0.00019178,2]
[346180462,1734766245525,-500.0,0.00019178,2]
[346180464,1734766245535,-699.73,0.00019178,2]
[346180466,1734766245544,-500.0,0.00019178,2]
[346180468,1734766245554,-2086.42,0.00019178,2]
[346180470,1734766245563,-500.0,0.00019178,2]
[346180472,1734766245572,-501.25061901,0.00019178,2]
[346180473,1734766245581,-500.0,0.00019178,2]
[346180475,1734766245591,-500.0,0.00019178,2]
[346180477,1734766245600,-500.0,0.00019178,2]
[346180479,1734766245609,-500.0,0.00019178,2]
[346180481,1734766245618,-500.0,0.00019178,2]
[346180482,1734766245627,-502.97083055,0.00019178,2]
[346180486,1734766245637,-933.31,0.00019178,2]
[346180489,1734766245646,-500.0,0.00019178,2]
[346180492,1734766245655,-500.0,0.00019178,2]
[346180495,1734766245665,-500.0,0.00019178,2]
[346180498,1734766245675,-501.64699385,0.00019178,2]
[346180500,1734766245684,-500.0,0.00019178,2]
[346180503,1734766245693,-500.0,0.00019178,2]
[346180505,1734766245702,-500.0,0.00019178,2]
[346180508,1734766245712,-193.28687725,0.00019178,2]
[346180511,1734766245721,-752.44,0.00019178,2]
[346180513,1734766245730,-500.0,0.00019178,2]
[346180516,1734766245740,-500.8124528,0.00019178,2]
[346180519,1734766245749,-500.0,0.00019178,2]
[346180522,1734766245759,-580.71,0.00019178,2]
[346180524,1734766245768,-3653.16,0.00019178,2]
[346180526,1734766245777,-501.97239756,0.00019178,2]
[346180527,1734766245786,-500.0,0.00019178,2]
[346180529,1734766245796,-715.96,0.00019178,2]
[346180531,1734766245806,-1000.0,0.00019178,2]
[346180533,1734766245815,-548.78,0.00019178,2]
[346180535,1734766245825,-500.0,0.00019178,2]
[346180537,1734766245835,-500.0,0.00019178,2]
[346180539,1734766245844,-500.0,0.00019178,2]
[346180541,1734766245853,-500.0,0.00019178,2]
[346180542,1734766245862,-500.0,0.00019178,2]
[346180544,1734766245872,-500.0,0.00019178,2]
[346180546,1734766245881,-1057.72,0.00019178,2]
[346180548,1734766245891,-501.8154218,0.00019178,2]
[346180550,1734766245900,-500.0,0.00019178,2]
[346180552,1734766245909,-500.0,0.00019178,2]
[346180554,1734766245919,-500.0,0.00019178,2]
[346180556,1734766245928,-500.0,0.00019178,2]
[346180557,1734766245939,-500.0,0.00019178,2]
[346180559,1734766245949,-500.0,0.00019178,2]
[346180561,1734766245959,-972.1,0.00019178,2]
[346180563,1734766245968,-500.0,0.00019178,2]
[346180565,1734766245979,-500.0,0.00019178,2]
[346180567,1734766245988,-1846.47,0.00019178,2]
[346180569,1734766245997,-500.0,0.00019178,2]
[346180570,1734766246007,-500.0,0.00019178,2]
[346180572,1734766246016,-501.42492149,0.00019178,2]
[346180573,1734766246027,-500.0,0.00019178,2]
[346180574,1734766246037,-500.0,0.00019178,2]
[346180575,1734766246046,-500.89455931,0.00019178,2]
[346180576,1734766246055,-705.88,0.00019178,2]
[346180577,1734766246065,-500.0,0.00019178,2]
[346180578,1734766246074,-500.0,0.00019178,2]
[346180579,1734766246084,-500.0,0.00019178,2]
[346180580,1734766246093,-500.0,0.00019178,2]
[346180581,1734766246103,-1192.71,0.00019178,2]
[346180582,1734766246112,-611.42,0.00019178,2]
[346180583,1734766246121,-973.42,0.00019178,2]
[346180584,1734766246131,-500.0,0.00019178,2]
[346180585,1734766246140,-2631.45,0.00019178,2]
[346180586,1734766246150,-500.0,0.00019178,2]
[346180587,1734766246159,-500.0,0.00019178,2]
[346180588,1734766246169,-500.0,0.00019178,2]
[346180589,1734766246178,-501.66895662,0.00019178,2]
[346180590,1734766246187,-500.0,0.00019178,2]
[346180591,1734766246196,-500.0,0.00019178,2]
[346180592,1734766246206,-500.0,0.00019178,2]
[346180593,1734766246215,-501.28524732,0.00019178,2]
[346180594,1734766246225,-500.0,0.00019178,2]
[346180595,1734766246234,-500.0,0.00019178,2]
[346180596,1734766246244,-500.0,0.00019178,2]
[346180597,1734766246254,-500.0,0.00019178,2]
[346180598,1734766246263,-500.0,0.00019178,2]
[346180599,1734766246273,-590.84,0.00019178,2]
[346180600,1734766246282,-1171.07,0.00019178,2]
[346180601,1734766246291,-501.41466769,0.00019178,2]
[346180602,1734766246301,-500.0,0.00019178,2]
[346180603,1734766246310,-500.0,0.00019178,2]
[346180604,1734766246319,-500.0,0.00019178,2]
[346180605,1734766246328,-500.0,0.00019178,2]
[346180606,1734766246338,-500.0,0.00019178,2]
[346180607,1734766246347,-660.84,0.00019178,2]
[346180608,1734766246356,-500.0,0.00019178,2]
[346180609,1734766246366,-500.0,0.00019178,2]
[346180610,1734766246375,-500.0,0.00019178,2]
[346180611,1734766246385,-500.0,0.00019178,2]
[346180612,1734766246393,-502.11522854,0.00019178,2]
[346180614,1734766246415,-1224.32,0.00019178,2]
[346180615,1734766246425,-500.0,0.00019178,2]
[346180617,1734766246434,-500.0,0.00019178,2]
[346180619,1734766246444,-500.0,0.00019178,2]
[346180621,1734766246456,-500.0,0.00019178,2]
[346180623,1734766246466,-500.0,0.00019178,2]
[346180625,1734766246476,-503.25938619,0.00019178,2]
[346180627,1734766246485,-587.6,0.00019178,2]
[346180629,1734766246495,-500.0,0.00019178,2]
[346180631,1734766246504,-500.0,0.00019178,2]
[346180633,1734766246514,-502.19973607,0.00019178,2]
[346180635,1734766246524,-500.0,0.00019178,2]
[346180637,1734766246534,-640.93769776,0.00019178,2]
[346180639,1734766246544,-500.0,0.00019178,2]
[346180642,1734766246553,-500.0,0.00019178,2]
[346180644,1734766246563,-500.805849,0.00019178,2]
[346180646,1734766246573,-500.0,0.00019178,2]
[346180648,1734766246583,-500.0,0.00019178,2]
[346180650,1734766246593,-1319.25,0.00019178,2]
[346180652,1734766246603,-500.0,0.00019178,2]
[346180654,1734766246614,-500.0,0.00019178,2]
[346180656,1734766246624,-500.0,0.00019178,2]
[346180658,1734766246634,-500.0,0.00019178,2]
[346180660,1734766246643,-611.55,0.00019178,2]
[346180662,1734766246653,-193.56771961,0.00019178,2]
[346180664,1734766246663,-500.0,0.00019178,2]
[346180666,1734766246672,-500.0,0.00019178,2]
[346180669,1734766246682,-501.30293119,0.00019178,2]
[346180671,1734766246692,-500.0,0.00019178,2]
[346180673,1734766246703,-500.0,0.00019178,2]
[346180675,1734766246713,-500.0,0.00019178,2]
[346180677,1734766246722,-500.0,0.00019178,2]
[346180679,1734766246732,-500.0,0.00019178,2]
[346180681,1734766246743,-500.0,0.00019178,2]
[346180683,1734766246753,-503.04,0.00019178,2]
[346180685,1734766246762,-500.86023881,0.00019178,2]
[346180687,1734766246772,-820.79,0.00019178,2]
[346180689,1734766246782,-500.0,0.00019178,2]
[346180691,1734766246791,-500.0,0.00019178,2]
[346180693,1734766246801,-500.90106963,0.00019178,2]
[346180695,1734766246810,-500.0,0.00019178,2]
[346180697,1734766246821,-500.0,0.00019178,2]
[346180699,1734766246831,-500.0,0.00019178,2]
[346180701,1734766246841,-500.0,0.00019178,2]
[346180703,1734766246851,-500.0,0.00019178,2]
[346180705,1734766246863,-500.0,0.00019178,2]
[346180707,1734766246872,-500.0,0.00019178,2]
[346180709,1734766246882,-500.0,0.00019178,2]
[346180711,1734766246892,-500.0,0.00019178,2]
[346180713,1734766246902,-500.0,0.00019178,2]
[346180715,1734766246912,-1052.55,0.00019178,2]
[346180717,1734766246922,-500.0,0.00019178,2]
[346180720,1734766246932,-503.08439298,0.00019178,2]
[346180722,1734766246943,-502.74037705,0.00019178,2]
[346180723,1734766246954,-500.0,0.00019178,2]
[346180725,1734766246965,-500.0,0.00019178,2]
[346180727,1734766246975,-500.0,0.00019178,2]
[346180729,1734766246985,-568.18274803,0.00019178,2]
[346180731,1734766246995,-500.0,0.00019178,2]
[346180733,1734766247005,-396.7,0.00019178,2]
[346180735,1734766247016,-500.0,0.00019178,2]
[346180737,1734766247027,-2445.69,0.00019178,2]
[346180739,1734766247038,-500.0,0.00019178,2]
[346180741,1734766247049,-500.0,0.00019178,2]
[346180743,1734766247061,-557.78,0.00019178,2]
[346180745,1734766247071,-1897.3,0.00019178,2]
[346180747,1734766247082,-500.0,0.00019178,2]
[346180750,1734766247092,-910.93,0.00019178,2]
[346180752,1734766247102,-565.09665449,0.00019178,2]
[346180754,1734766247113,-254.39648922,0.00019178,2]
[346180756,1734766247123,-500.0,0.00019178,2]
[346180758,1734766247133,-1220.66,0.00019178,2]
[346180760,1734766247143,-604.03,0.00019178,2]
[346180762,1734766247153,-500.0,0.00019178,2]
[346180764,1734766247164,-500.0,0.00019178,2]
[346180766,1734766247174,-500.0,0.00019178,2]
[346180768,1734766247185,-500.0,0.00019178,2]
[346180770,1734766247195,-1011.73,0.00019178,2]
[346180772,1734766247211,-500.0,0.00019178,2]
[346180774,1734766247221,-500.0,0.00019178,2]
[346180776,1734766247232,-500.0,0.00019178,2]
[346180797,1734766247434,-500.0,0.00019178,2]
[346180799,1734766247444,-500.0,0.00019178,2]
[346180801,1734766247456,-500.0,0.00019178,2]
[346180803,1734766247466,-5535.71,0.00019178,2]
[346180805,1734766247476,-502.04557542,0.00019178,2]
[346180807,1734766247485,-500.0,0.00019178,2]
[346180809,1734766247494,-500.0,0.00019178,2]
[346180811,1734766247504,-619.11309734,0.00019178,2]
[346180813,1734766247514,-3634.58,0.00019178,2]
[346180816,1734766247523,-500.0,0.00019178,2]
[346180818,1734766247532,-500.0,0.00019178,2]
[346180819,1734766247541,-500.0,0.00019178,2]
[346180821,1734766247551,-500.0,0.00019178,2]
[346180824,1734766247560,-500.0,0.00019178,2]
[346180826,1734766247569,-500.0,0.00019178,2]
[346180827,1734766247579,-500.0,0.00019178,2]
[346180829,1734766247588,-500.0,0.00019178,2]
[346180831,1734766247597,-500.0,0.00019178,2]
[346180834,1734766247606,-1418.9,0.00019178,2]
[346180836,1734766247615,-500.0,0.00019178,2]
[346180838,1734766247625,-500.0,0.00019178,2]
[346180840,1734766247634,-500.0,0.00019178,2]
[346180842,1734766247644,-500.0,0.00019178,2]
[346180844,1734766247653,-500.0,0.00019178,2]
[346180846,1734766247663,-500.0,0.00019178,2]
[346180848,1734766247672,-500.0,0.00019178,2]
[346180850,1734766247682,-516.1,0.00019178,2]
[346180852,1734766247691,-500.0,0.00019178,2]
[346180854,1734766247700,-500.0,0.00019178,2]
[346180856,1734766247712,-504.61139153,0.00019178,2]
[346180858,1734766247722,-852.27,0.00019178,2]
[346180860,1734766247731,-500.0,0.00019178,2]
[346180862,1734766247741,-437.68895727,0.00019178,2]
[346180864,1734766247750,-500.0,0.00019178,2]
[346180866,1734766247760,-500.0,0.00019178,2]
[346180868,1734766247770,-500.0,0.00019178,2]
[346180870,1734766247780,-500.0,0.00019178,2]
[346180872,1734766247789,-503.66017421,0.00019178,2]
[346180874,1734766247799,-1446.26,0.00019178,2]
[346180876,1734766247808,-2981.53,0.00019178,2]
[346180878,1734766247819,-500.0,0.00019178,2]
[346180880,1734766247829,-500.0,0.00019178,2]
[346180882,1734766247838,-525.61,0.00019178,2]
[346180884,1734766247848,-160.229682,0.00019178,2]
[346180886,1734766247858,-160.229682,0.00019178,2]
[346180888,1734766247870,-160.229682,0.00019178,2]
[346180890,1734766247879,-160.229682,0.00019178,2]
[346180892,1734766247889,-160.229682,0.00019178,2]
[346180894,1734766247898,-160.229682,0.00019178,2]
[346180896,1734766247908,-160.229682,0.00019178,2]
[346180898,1734766247917,-240.39845,0.00019178,2]
[346180900,1734766247926,-240.39845,0.00019178,2]
[346180902,1734766247938,-500.0,0.00019178,2]
[346180905,1734766247949,-160.229682,0.00019178,2]
[346180907,1734766247962,-240.39845,0.00019178,2]
[346180909,1734766247971,-160.229682,0.00019178,2]
[346180911,1734766247982,-240.39845,0.00019178,2]
[346180913,1734766247991,-160.229682,0.00019178,2]
[346180915,1734766248000,-240.39845,0.00019178,2]
[346180917,1734766248010,-160.229682,0.00019178,2]
[346180919,1734766248021,-2285.55,0.00019178,2]
[346180921,1734766248032,-240.39845,0.00019178,2]
[346180923,1734766248042,-160.229682,0.00019178,2]
[346180925,1734766248051,-240.39845,0.00019178,2]
[346180927,1734766248060,-160.229682,0.00019178,2]
[346180929,1734766248070,-1749.05,0.00019178,2]
[346180931,1734766248079,-240.39845,0.00019178,2]
[346180933,1734766248089,-501.1596507,0.00019178,2]
[346180935,1734766248098,-160.229682,0.00019178,2]
[346180937,1734766248107,-240.39845,0.00019178,2]
[346180939,1734766248117,-160.229682,0.00019178,2]
[346180941,1734766248127,-240.39845,0.00019178,2]
[346180943,1734766248136,-160.229682,0.00019178,2]
[346180945,1734766248146,-240.39845,0.00019178,2]
[346180947,1734766248156,-160.229682,0.00019178,2]
[346180949,1734766248166,-240.39845,0.00019178,2]
[346180951,1734766248176,-160.229682,0.00019178,2]
[346180953,1734766248187,-151.0,0.00019178,2]
[346180956,1734766248196,-240.39845,0.00019178,2]
[346180958,1734766248208,-160.229682,0.00019178,2]
[346180960,1734766248217,-151.0,0.00019178,2]
[346180962,1734766248226,-500.0,0.00019178,2]
[346180964,1734766248236,-500.0,0.00019178,2]
[346180966,1734766248246,-240.39845,0.00019178,2]
[346180968,1734766248256,-160.229681,0.00019178,2]
[346180970,1734766248266,-240.39845,0.00019178,2]
[346180972,1734766248275,-151.0,0.00019178,2]
[346180974,1734766248285,-240.39845,0.00019178,2]
[346180976,1734766248294,-500.0,0.00019178,2]
[346180978,1734766248304,-240.39845,0.00019178,2]
[346180980,1734766248314,-240.39845,0.00019178,2]
[346180982,1734766248323,-151.0,0.00019178,2]
[346180984,1734766248333,-240.39845,0.00019178,2]
[346180986,1734766248342,-151.0,0.00019178,2]
[346180988,1734766248352,-240.39845028,0.00019178,2]
[346180990,1734766248361,-151.0,0.00019178,2]
[346180992,1734766248371,-501.00418216,0.00019178,2]
[346180994,1734766248380,-151.0,0.00019178,2]
[346180996,1734766248389,-151.0,0.00019178,2]
[346180998,1734766248399,-151.0,0.00019178,2]
[346181000,1734766248409,-151.0,0.00019178,2]
[346181002,1734766248418,-154.715843,0.00019178,2]
[346181004,1734766248428,-500.0,0.00019178,2]
[346181006,1734766248437,-1890.46,0.00019178,2]
[346181008,1734766248446,-500.0,0.00019178,2]
[346181010,1734766248460,-500.0,0.00019178,2]
[346181012,1734766248470,-500.0,0.00019178,2]
[346181014,1734766248479,-2264.08,0.00019178,2]
[346181016,1734766248490,-500.0,0.00019178,2]
[346181018,1734766248500,-500.0,0.00019178,2]
[346181020,1734766248509,-500.0,0.00019178,2]
[346181022,1734766248518,-500.0,0.00019178,2]
[346181024,1734766248528,-500.0,0.00019178,2]
[346181026,1734766248538,-501.08837153,0.00019178,2]
[346181028,1734766248548,-2620.08,0.00019178,2]
[346181031,1734766248559,-502.2500983,0.00019178,2]
[346181033,1734766248569,-900.98,0.00019178,2]
[346181034,1734766248578,-500.0,0.00019178,2]
[346181037,1734766248588,-500.0,0.00019178,2]
[346181039,1734766248598,-500.0,0.00019178,2]
[346181041,1734766248607,-500.0,0.00019178,2]
[346181043,1734766248616,-500.0,0.00019178,2]
[346181045,1734766248626,-737.16,0.00019178,2]
[346181047,1734766248635,-2322.35,0.00019178,2]
[346181049,1734766248645,-500.0,0.00019178,2]
[346181051,1734766248655,-818.44,0.00019178,2]
[346181053,1734766248664,-516.32509819,0.00019178,2]
[346181055,1734766248674,-500.0,0.00019178,2]
[346181057,1734766248684,-500.0,0.00019178,2]
[346181059,1734766248694,-1322.38,0.00019178,2]
[346181061,1734766248706,-500.0,0.00019178,2]
[346181063,1734766248715,-500.0,0.00019178,2]
[346181065,1734766248724,-500.0,0.00019178,2]
[346181067,1734766248734,-500.0,0.00019178,2]
[346181069,1734766248744,-500.0,0.00019178,2]
[346181071,1734766248754,-2649.31,0.00019178,2]
[346181073,1734766248764,-501.16797293,0.00019178,2]
[346181075,1734766248775,-614.19,0.00019178,2]
[346181077,1734766248784,-500.0,0.00019178,2]
[346181079,1734766248795,-504.62251638,0.00019178,2]
[346181081,1734766248805,-500.0,0.00019178,2]
[346181083,1734766248814,-500.0,0.00019178,2]
[346181085,1734766248823,-500.0,0.00019178,2]
[346181087,1734766248833,-500.0,0.00019178,2]
[346181089,1734766248843,-1573.26,0.00019178,2]
[346181091,1734766248852,-500.0,0.00019178,2]
[346181093,1734766248861,-500.0,0.00019178,2]
[346181095,1734766248870,-500.0,0.00019178,2]
[346181097,1734766248880,-879.98,0.00019178,2]
[346181099,1734766248889,-1858.69,0.00019178,2]
[346181101,1734766248898,-500.0,0.00019178,2]
[346181103,1734766248908,-500.0,0.00019178,2]
[346181105,1734766248917,-1120.88,0.00019178,2]
[346181107,1734766248927,-2142.5,0.00019178,2]
[346181109,1734766248937,-500.0,0.00019178,2]
[346181111,1734766248946,-500.0,0.00019178,2]
[346181113,1734766248958,-547.19,0.00019178,2]
[346181115,1734766248968,-500.0,0.00019178,2]
[346181118,1734766248979,-500.0,0.00019178,2]
[346181120,1734766248988,-500.0,0.00019178,2]
[346181122,1734766248997,-1374.51,0.00019178,2]
[346181124,1734766249007,-500.0,0.00019178,2]
[346181126,1734766249017,-290.7945099,0.00019178,2]
[346181128,1734766249026,-500.0,0.00019178,2]
[346181130,1734766249036,-985.27,0.00019178,2]
[346181132,1734766249046,-1598.25,0.00019178,2]
[346181134,1734766249055,-979.4,0.00019178,2]
[346181136,1734766249064,-1355.79,0.00019178,2]
[346181138,1734766249074,-502.77080955,0.00019178,2]
[346181140,1734766249084,-500.0,0.00019178,2]
[346181142,1734766249094,-507.97414191,0.00019178,2]
[346181144,1734766249103,-500.0,0.00019178,2]
[346181146,1734766249113,-819.4,0.00019178,2]
[346181148,1734766249123,-1316.12,0.00019178,2]
[346181150,1734766249133,-500.0,0.00019178,2]
[346181152,1734766249143,-500.0,0.00019178,2]
[346181154,1734766249152,-500.0,0.00019178,2]
[346181156,1734766249163,-500.0,0.00019178,2]
[346181158,1734766249172,-1598.42,0.00019178,2]
[346181160,1734766249181,-500.0,0.00019178,2]
[346181162,1734766249191,-646.59,0.00019178,2]
[346181164,1734766249200,-500.0,0.00019178,2]
[346181166,1734766249211,-500.0,0.00019178,2]
[346181168,1734766249221,-226.184767,0.00019178,2]
[346181170,1734766249234,-226.184767,0.00019178,2]
[346181172,1734766249243,-500.0,0.00019178,2]
[346181174,1734766249252,-226.184767,0.00019178,2]
[346181176,1734766249262,-226.184767,0.00019178,2]
[346181178,1734766249271,-500.0,0.00019178,2]
[346181180,1734766249280,-226.184767,0.00019178,2]
[346181182,1734766249290,-226.184767,0.00019178,2]
[346181184,1734766249299,-2637.05,0.00019178,2]
[346181186,1734766249309,-226.184767,0.00019178,2]
[346181188,1734766249318,-226.184767,0.00019178,2]
[346181190,1734766249328,-226.184767,0.00019178,2]
[346181192,1734766249338,-226.184767,0.00019178,2]
[346181194,1734766249348,-226.184767,0.00019178,2]
[346181197,1734766249358,-500.0,0.00019178,2]
[346181199,1734766249367,-226.184767,0.00019178,2]
[346181200,1734766249376,-500.0,0.00019178,2]
[346181202,1734766249386,-226.184767,0.00019178,2]
[346181205,1734766249396,-226.184767,0.00019178,2]